Cogmind - Beta 11.1 @@@ ROGUE MODE // 2022.06.23 @ 10:24:56 Player: Demise Result: Destroyed by as-71726 with Assembled Blade Performance ------------- Evolutions (0) 0 Regions Visited (2) 400 Robots Destroyed (19) 95 Value Destroyed (350) 350 Prototype IDs (0) 0 Alien Tech Used (0) 0 Bonus (0) 0 TOTAL SCORE: 845 Bonus ------- None Cogmind --------- Core Integrity 0/250 Matter 298/300 Energy 100/100 System Corruption 0% Temperature Cool (0) Movement Rolling (95) Ox1 Location -10/Mines Parts ------- > --- POWER (1) -------- (None) > --- PROPULSION (2) --- Wheel Wheel > --- UTILITY (2) ------ Large Storage Unit Seismic Detector > --- WEAPON (2) ------- Light Assault Rifle Light Assault Rifle > --- INVENTORY (15) --- Wheel Wheel Flight Unit Flight Unit Medium Storage Unit High-capacity Storage Unit Huge Storage Unit Structural Scanner Signal Interpreter Signal Interpreter Propulsion Shielding Utility Shielding Datajack Plasma Cutter Peak State ------------ > --- POWER ------------ Light Nuclear Core > --- PROPULSION ------- Wheel Wheel > --- UTILITY ---------- Large Storage Unit Signal Interpreter > --- WEAPON ----------- Light Assault Rifle Light Assault Rifle > --- INVENTORY -------- Wheel Wheel Flight Unit Flight Unit Medium Storage Unit Huge Storage Unit Structural Scanner Seismic Detector Propulsion Shielding Utility Shielding Light Assault Rifle Light Assault Rifle Datajack Plasma Cutter Plasma Cutter [Rating: 10] Favorites ----------- Power Light Ion Engine Engine Light Ion Engine Power Core Light Nuclear Core Propulsion Wheel Wheel Wheel Utility Large Storage Unit Device Seismic Detector Storage Large Storage Unit Processor Signal Interpreter Protection Utility Shielding Weapon Light Assault Rifle Energy Gun EM Pulse Gun Ballistic Gun Light Assault Rifle Special Weapon Plasma Cutter Build | -11 -10 -10 ------- Run | Scr Mat Min Slots Evolved . | . . . Power . | . . . Propulsion . | . . . Utility . | . . . Weapon . | . . . Parts Attached 27 | 7 14 6 Power 6 | 2 3 1 Engine 4 | 2 2 . Core 2 | . 1 1 Reactor . | . . . Propulsion 5 | 1 4 . Treads . | . . . Leg . | . . . Wheel 5 | 1 4 . Hover . | . . . Flight . | . . . Utility 9 | 2 5 2 Device 4 | 1 2 1 Storage 2 | 1 1 . Processor 1 | . 1 . Hackware . | . . . Protection 2 | . 1 1 Artifact . | . . . Weapon 7 | 2 2 3 Energy Gun 2 | 1 1 . Energy Cannon . | . . . Ballistic Gun 4 | 1 1 2 Ballistic Cannon . | . . . Launcher . | . . . Special Weapon 1 | . . 1 Impact Weapon . | . . . Slashing Weapon . | . . . Piercing Weapon . | . . . Special Melee Weapon . | . . . Unidentified Prototypes . | . . . Parts Lost 8 | . 4 4 Power 2 | . 1 1 Propulsion 1 | . 1 . Utility . | . . . Weapon 5 | . 2 3 Highest Loss Streak 4 | . 2 4 To Critical Strikes . | . . . Average Slot Usage (%) 91 | . 92 86 Engine 9 | . 11 . Core 1 | . 1 2 Wheel 27 | . 26 28 Device 5 | . 5 6 Storage 14 | . 14 14 Protection 3 | . 2 7 Energy Gun 5 | . 6 . Ballistic Gun 21 | . 20 26 Naked Turns . | . . . Heaviest Build 31 | 12 31 28 Greatest Support 20 | 10 20 20 Greatest Overweight (x) 2 | 1 2 1 Average Overweight (x) . | . 1 1 Largest Inventory Capacity 15 | 8 15 15 Average Capacity 14 | 5 14 15 Most Carried 15 | 5 15 15 Average Carried 11 | 4 10 13 Final Capacity 15 | 8 15 15 Final Carried 15 | 3 15 14 Class Distribution -------------------- 75% | Mutant 24% | Scavenger-Mutant Dominant Class ---------------- Mutant | -10/Materials Mutant | -10/Mines Resources | -11 -10 -10 ----------- Run | Scr Mat Min Matter Collected 557 | 276 196 85 Remotely . | . . . Salvage Created 702 | 109 498 95 Parts 47 | 4 43 . Haulers Intercepted 1 | . 1 . Recyclers Shooed 1 | 1 . . Parts Field Recycled . | . . . Retrieved Matter . | . . . Parts Self-Destructed . | . . . Prevented . | . . . Kills | -11 -10 -10 ------- Run | Scr Mat Min Combat Hostiles Destroyed 17 | . 10 7 Guns 17 | . 10 7 Classes Destroyed 9 | 2 6 1 Worker 2 | . 2 . Tunneler 2 | 1 1 . Hauler 1 | . 1 . Recycler 1 | 1 . . Operator 2 | . 2 . Watcher 1 | . 1 . Swarmer 3 | . 3 . Grunt 7 | . 7 . Assembled 7 | . . 7 Best Kill Streak 7 | 2 7 4 Combat Bots Only 5 | . 5 4 Max Kills in Single Turn 1 | 1 1 1 Gunslinging . | . . . Exploded . | . . . Melee . | . . . Uniques/NPCs Destroyed . | . . . Combat | -11 -10 -10 -------- Run | Scr Mat Min Damage Taken 889 | . 404 485 Core 253 | . 99 154 Absorbed by Shields . | . . . Redirected to Shielding 18 | . 2 16 Core Remaining (%) 100 | 100 . . Volleys Fired 90 | 6 57 27 Largest 2 | 2 2 2 Hottest 60 | 60 60 40 Shots Fired 162 | 12 99 51 Gun 158 | 12 99 47 Cannon . | . . . Launcher . | . . . Special 4 | . . 4 Kinetic 124 | 6 71 47 Thermal 4 | . . 4 Explosive . | . . . Electromagnetic 34 | 6 28 . Robot Hit Streak 15 | 2 15 9 Robot Miss Streak 4 | 2 4 3 Penetration Max . | . . . Secondary Targets 5 | . 2 3 Max Gunslinging Chain 1 | . 1 1 Shots Hit Robots 111 | 6 68 37 Core Hits 57 | 3 35 19 Critical Kills 2 | . 1 1 Critical Parts Destroyed 2 | . 2 . Critical Strikes 5 | . 4 1 Destroy 4 | . 3 1 Corrupt 1 | . 1 . Melee Attacks . | . . . Impact . | . . . Slashing . | . . . Piercing . | . . . Sneak Attacks . | . . . Combat Hostiles . | . . . Follow-up Attacks . | . . . Damage Inflicted 1046 | 63 683 300 Guns 1016 | 63 683 270 Cannons . | . . . Explosions . | . . . Melee . | . . . Ramming . | . . . Kinetic 681 | 25 386 270 Thermal 30 | . . 30 Explosive . | . . . Electromagnetic 335 | 38 297 . Impact . | . . . Slashing . | . . . Piercing . | . . . Highest Corruption . | . . . Average Corruption . | . . . Corruption Purged . | . . . Corruption Blocked . | . . . Overload Shots . | . . . Overflow Damage 6 | . . 6 Projectiles 6 | . . 6 Explosions . | . . . Melee . | . . . Knockbacks . | . . . Impact . | . . . Kinetic . | . . . Secondary . | . . . Self-Inflicted Damage . | . . . Shots . | . . . Rammed . | . . . Targets Rammed . | . . . Kicked . | . . . Crushed . | . . . Highest Temperature 183 | 20 183 8 Average Temperature 35 | 9 41 3 Received Heat Transfer 228 | . 168 60 Siege Activations . | . . . Robots Corrupted . | . . . Combat Hostiles . | . . . Parts Fried . | . . . Impact Corruptions . | . . . Robots Melted . | . . . Combat Hostiles . | . . . Parts Melted . | . . . Heat Transferred 111 | . . 111 Parts Sabotaged . | . . . Parts Stolen . | . . . Parts Stripped . | . . . Power Chain Reactions . | . . . Missiles Intercepted . | . . . Alert | -11 -10 -10 ------- Run | Scr Mat Min Peak Influence 263 | 10 263 28 Initial 28 | . 6 28 Average 101 | 4 131 6 Maximum Alert Level 1 | . 1 . Low Security (%) 79 | 100 73 100 Level 1 20 | . 26 . Level 2 . | . . . Level 3 . | . . . Level 4 . | . . . Level 5 . | . . . High Security . | . . . Max Security . | . . . Squads Dispatched 8 | . 8 . Investigation 6 | . 6 . Extermination . | . . . Reinforcement 2 | . 2 . Assault . | . . . Garrison . | . . . Intercept . | . . . Searches Triggered . | . . . Construction Impeded . | . . . Haulers Reinforced . | . . . Active Scanning Responses . | . . . Cargo Convoy Interrupts . | . . . Stealth | -11 -10 -10 --------- Run | Scr Mat Min Distress Signals 1 | . . 1 Communications Jammed . | . . . Distress Signals . | . . . Times Spotted 24 | . 15 9 Peak Tracking Total 8 | . 5 8 Tactical Retreats 2 | . 1 1 Traps | -11 -10 -10 ------- Run | Scr Mat Min Traps Triggered 2 | . 2 . Indirectly . | . . . Trap Hack Attempts . | . . . Triggered . | . . . Disarmed . | . . . Reprogrammed . | . . . Reused . | . . . Traps Extracted . | . . . Installed . | . . . Triggered . | . . . Machines | -11 -10 -10 ---------- Run | Scr Mat Min Machines Disabled 1 | . 1 . Max in Single Turn 1 | . 1 . Machines Sabotaged . | . . . Garrisons Compromised . | . . . Overloaded Fab Kills . | . . . Hacking | -11 -10 -10 --------- Run | Scr Mat Min Machines Accessed 8 | . 8 . Terminals 6 | . 6 . Fabricators . | . . . Repair Stations . | . . . Recycling Units 2 | . 2 . Scanalyzers . | . . . Garrison Access . | . . . Total Hacks 28 | . 28 . Successful 15 | . 15 . Failed 12 | . 12 . Catastrophic 2 | . 2 . Database Lockouts 1 | . 1 . Manual 27 | . 27 . Terminals 23 | . 23 . Fabricators . | . . . Repair Stations . | . . . Recycling Units 5 | . 5 . Scanalyzers . | . . . Garrison Access . | . . . Terminal Hacks 6 | . 6 . Robot Analysis 6 | . 6 . Fabricator Hacks . | . . . Repair Station Hacks . | . . . Recycling Unit Hacks 2 | . 2 . Retrieve Components 2 | . 2 . Scanalyzer . | . . . Garrison Access Hacks . | . . . Unauthorized Hacks 7 | . 7 . Terminals 5 | . 5 . Botnet 5 | . 5 . Fabricators . | . . . Repair Stations . | . . . Recycling Units 2 | . 2 . Tunnel 2 | . 2 . Scanalyzers . | . . . Garrison Access . | . . . Data Cores Recovered . | . . . Used . | . . . Hacking Detections 8 | . 8 . Full Trace Events 5 | . 5 . Feedback Events . | . . . Feedback Blocked . | . . . Robot Schematics Acquired . | . . . Robots Built . | . . . Authchips . | . . . Time . | . . . Total Robot Build Rating . | . . . Part Schematics Acquired . | . . . Parts Built . | . . . Authchips . | . . . Time . | . . . Total Part Build Rating . | . . . Parts Repaired . | . . . Time . | . . . Parts Recycled . | . . . Recycled Matter . | . . . Retrieved Matter . | . . . Retrieved Components 10 | . 10 . Parts Scanalyzed . | . . . Part Schematics Acquired . | . . . Parts Damaged . | . . . Bothacking | -11 -10 -10 ------------ Run | Scr Mat Min Used RIF Installer . | . . . Robots Hacked . | . . . Non-combat . | . . . Combat . | . . . Robot Hacks Applied . | . . . Relay Couplers Released . | . . . Fabnet Peak Effective % . | . . . Robots Rewired . | . . . Allies Hacked . | . . . Hacks Repelled . | . . . Allies | -11 -10 -10 -------- Run | Scr Mat Min Total Allies . | . . . Largest Group . | . . . Highest-Rated Group . | . . . Highest-Rated Ally . | . . . Total Orders . | . . . Ally Attacks . | . . . Total Damage . | . . . Kills . | . . . Allies Corrupted . | . . . Allies Melted . | . . . Intel | -11 -10 -10 ------- Run | Scr Mat Min Robot Analysis Total 6 | . 6 . Derelict Logs Recovered 1 | . . 1 Drone Launches . | . . . Drone Recoveries . | . . . Exploration | -11 -10 -10 ------------- Run | Scr Mat Min Turns Passed 1226 | 57 925 244 Spaces Moved 946 | 37 765 144 Core 19 | 19 . . Treads . | . . . Legs . | . . . Wheels 927 | 18 765 144 Hover . | . . . Flight . | . . . Fastest Speed 50 | 50 95 95 Average Speed 93 | 65 95 95 Slowest Speed 110 | 95 110 95 Overloaded Moves . | . . . Propulsion Burnouts . | . . . Robots Hopped . | . . . Cave-ins Triggered . | . . . Exploration Rate (%) 40 | 4 96 22 Regions Visited 2 Branch Regions 1 Pre-discovered Areas 2 | . 2 . Known Exits Taken 1 | . 1 . Unknown Exits Taken 1 | 1 . . Scrap Searched . | . . . Spaces Dug . | . . . Terrain Destroyed . | . . . Melee . | . . . Projectile . | . . . AOE . | . . . Terrain Rammed . | . . . Walls Destroyed . | . . . Machines Disabled . | . . . Actions | -11 -10 -10 --------- Run | Scr Mat Min Total 1137 | 57 876 204 Wait 37 | 2 13 22 Move 944 | 36 764 144 Hop . | . . . Pick Up 26 | 5 18 3 Fast Attach 10 | 4 4 2 Attach 9 | 3 4 2 Detach 3 | 1 2 . Swap 8 | . 6 2 Drop 10 | . 8 2 Fire 90 | 6 57 27 Melee . | . . . Ram . | . . . Kick . | . . . Crush . | . . . Escape Stasis . | . . . Rewire . | . . . Trap . | . . . Miscellaneous . | . . . Route ------- -11/Scrapyard -10/Materials (discovered 5 exits: *Mat x3 / *Min x2) -10/Mines History --------- Turn | Location | Event 41 | -11/Scrapyard | Discovered new exit (range 14) 58 | -11/Scrapyard | Entered Materials 156 | -10/Materials | Discovered new exit (range 6) 312 | -10/Materials | Build established: Mutant 395 | -10/Materials | Discovered new exit (range 8) 581 | -10/Materials | Discovered new exit (range 9) 594 | -10/Materials | Discovered new exit (range 12) 732 | -10/Materials | Discovered new exit (range 11) 841 | -10/Materials | Identified exit to Mines 899 | -10/Materials | Identified exit to Materials 962 | -10/Materials | Central database locked down 983 | -10/Materials | Entered Mines 985 | -10/Mines | Assembled infested the area 995 | -10/Mines | Build established: Scavenger-Mutant 1010 | -10/Mines | Core integrity fell below 50% 1039 | -10/Mines | Core integrity fell below 20% 1105 | -10/Mines | Lost 4 parts (1p3w) 1193 | -10/Mines | Learned Materials stockpile data 1227 | -10/Mines | Destroyed by as-71726 with Assembled Blade Last Messages --------------- 01059_ as-82563 destroyed. 01060_ Acquired 20 matter. 01067_ as-21869 destroyed. 01067_ Switching to secondary target: as-32134. 01068_ Acquired 15 matter. 01074_ Lgt. Assault Rifle destroyed. 01077_ as-55391 destroyed. 01077_ Switching to secondary target: as-32134. 01078_ Acquired 10 matter. 01083_ as-32134 destroyed. 01085_ Acquired 13 matter. 01086_ Acquired 7 matter. 01111_ Acquired Signal Interpreter. 01115_ Dropped Signal Interpreter. 01115_ Acquired Hcp. Storage Unit. 01117_ Acquired Signal Interpreter. 01136_ Acquired 3 matter. 01137_ Acquired 7 matter. 01193_ Acquired derelict log, extracted data. Data stored: Materials stockpile data. Map ----- +----------------------------------------------------+ | ?????????????????????????????????????????????????? | | ?????????????????????????????????????????????????? | | ?????????????????????????????????????????????????? | | ?????????????????????????????????????????????????? | | ?????????????????????????????????????????????????? | | ?????????????????????????????????????????????????? | | ?????????????????????????????????????????????????? | | ?????????????????????????????????????????????????? | | ?????????????????????????????????????????????????# | | ??????????????????????? ?????????????????????## | | ????????????????????? ?????????????????????# | | ????????????????????? ?????????????????????# | | ?????????????????????? ?????????????????????# | | ?????????????????????? #????????????????????# | | ??????????????????????? #????????????????????# | | ??????????????????????? ##??????????????????## | | ???????????????????????? #?????????????????## | | ???????????????????????? #????????????????## | | ????????????????????????# < ????????????????# | | ????????????????????????# ?????????????????# | | ????????????????????##### ?????????????????## | | ????????????######### ###########????????## | | ??????????? !% #????????## | | ???????????? a * ########## | | ??????????????????# # ######## | | ????????????????????## a@##??????# | | ?????????????????????######???????############# | | ??????????????????????????????????????????????### | | ????????????????????????????????????????????????# | | ????????????????????????????????????????????????# | | ????????????????????????????????????????????????## | | ?????????????????????????????????????????????????? | | ?????????????????????????????????????????????????? | | ?????????????????????????????????????????????????? | | ?????????????????????????????????????????????????? | | ?????????????????????????????????????????????????? | | ?????????????????????????????????????????????????? | | ?????????????????????????????????????????????????? | | ?????????????????????????????????????????????????? | | ?????????????????????????????????????????????????? | | ?????????????????????????????????????????????????? | | ?????????????????????????????????????????????????? | | ?????????????????????????????????????????????????? | | ?????????????????????????????????????????????????? | | ?????????????????????????????????????????????????? | | ?????????????????????????????????????????????????? | | ?????????????????????????????????????????????????? | | ?????????????????????????????????????????????????? | | ?????????????????????????????????????????????????? | | ?????????????????????????????????????????????????? | +----------------------------------------------------+ Best States ------------- Heat Dissipation 25 Energy Generation 14 Energy Capacity 265 Matter Stores 300 Matter Capacity 300 Sight Range 16 Terrain Scan Density 10 Propulsion Shielding 33 Utility Shielding 33 Evasion (%) 50 Item Schematics ----------------- None Robot Schematics ------------------ None Fabricated ------------ Nothing Alien Tech Used ----------------- None Achievements -------------- None Challenges ------------ None Game ------ Seed ChargeSlugCleaver Manual? 0 Play Time 00:12:58 Cumulative 636.9 hours Start 2022.06.23 @ 10:13:57 End 2022.06.23 @ 10:24:56 Sessions 1 Manual Loads 0 Difficulty Rogue Special Mode None Game No. 512 Rogue 512 Adventurer 0 Explorer 0 Win Type - Total 8 Types 7/0/0/1/0/0/0/0/0 Lore% 74 Gallery% 86 Achievement% 68 Wizard Run 0 Options --------- ASCII 0 Keyboard 1 Movement Numpad Keybinds 0 Fullscreen 1 Font 12/Terminus Map View 83x54 Tactical HUD 1 Map Filters NONE Filters NONE Steam 1 RUN: 12804e8c-5b8a-41dd-8df0-a7a0df2e1f64